[Event "Estonian Chess Championship 2021"]
[Site "Tallinn, Paul Keres Chess House, Estonia"]
[Date "2021.12.17"]
[Round "7.4"]
[White "Soot, Margus"]
[Black "Rychagov, Nikita"]
[Result "0-1"]
[TimeControl "90 minutes for first 40 moves and 15 min. for the rest of the game with 30 sec."]
[WhiteFideId "4501160"]
[BlackFideId "4508394"]
[WhiteElo "2117"]
[BlackElo "1985"]

1. c4 {[%clk 01:30:59]} {[%emt 00:18:35]} e6 {[%clk 01:30:55]} {[%emt
00:00:07]} 2. Nf3 {[%clk 01:30:18]} {[%emt 00:01:09]} d5 {[%clk 01:31:17]}
{[%emt 00:00:09]} 3. e3 {[%clk 01:30:36]} {[%emt 00:00:13]} c5 {[%clk
01:27:56]} {[%emt 00:03:52]} 4. cxd5 {[%clk 01:28:01]} {[%emt 00:03:05]} exd5
{[%clk 01:28:15]} {[%emt 00:00:11]} 5. d4 {[%clk 01:28:25]} {[%emt 00:00:05]}
Nf6 {[%clk 01:27:42]} {[%emt 00:01:02]} 6. Nc3 {[%clk 01:27:01]} {[%emt
00:01:55]} Nc6 {[%clk 01:27:09]} {[%emt 00:01:03]} 7. Be2 {[%clk 01:25:18]}
{[%emt 00:02:12]} cxd4 {[%clk 01:22:41]} {[%emt 00:04:59]} 8. Nxd4 {[%clk
01:24:23]} {[%emt 00:01:25]} Bc5 {[%clk 01:22:21]} {[%emt 00:00:50]} 9. O-O
{[%clk 01:21:07]} {[%emt 00:03:46]} O-O {[%clk 01:22:11]} {[%emt 00:00:40]} 10.
Bf3 {[%clk 01:21:20]} {[%emt 00:00:17]} Bb6 {[%clk 01:18:02]} {[%emt 00:04:39]}
11. b3 {[%clk 01:19:48]} {[%emt 00:02:02]} Ne5 {[%clk 01:12:24]} {[%emt
00:06:08]} 12. Be2 {[%clk 01:15:43]} {[%emt 00:04:35]} a6 {[%clk 01:10:00]}
{[%emt 00:02:54]} 13. Bb2 {[%clk 01:10:28]} {[%emt 00:05:44]} Re8 {[%clk
01:07:16]} {[%emt 00:03:14]} 14. Rc1 {[%clk 01:10:28]} {[%emt 00:00:30]} Bc7
{[%clk 01:06:06]} {[%emt 00:01:40]} 15. h3 {[%clk 01:03:56]} {[%emt 00:07:01]}
Bb8 {[%clk 01:04:49]} {[%emt 00:01:48]} 16. Re1 {[%clk 00:53:35]} {[%emt
00:10:50]} Qd6 {[%clk 00:54:21]} {[%emt 00:10:58]} 17. Nb1 {[%clk 00:15:57]}
{[%emt 00:38:08]} Ne4 {[%clk 00:50:20]} {[%emt 00:04:31]} 18. f4 {[%clk
00:13:56]} {[%emt 00:02:31]} Ng6 {[%clk 00:46:58]} {[%emt 00:03:52]} 19. Bg4
{[%clk 00:09:53]} {[%emt 00:04:33]} Nxf4 {[%clk 00:42:52]} {[%emt 00:04:36]} 20.
exf4 {[%clk 00:03:04]} {[%emt 00:07:18]} Qxf4 {[%clk 00:43:12]} {[%emt
00:00:10]} 21. Nf3 {[%clk 00:03:17]} {[%emt 00:00:17]} Bxg4 {[%clk 00:38:25]}
{[%emt 00:05:17]} 22. hxg4 {[%clk 00:03:46]} Qg3 {[%clk 00:38:27]} {[%emt
00:00:28]} 23. Qxd5 {[%clk 00:01:44]} {[%emt 00:02:32]} Qf2+ {[%clk 00:38:47]}
{[%emt 00:00:09]} 24. Kh1 {[%clk 00:02:12]} {[%emt 00:00:02]} Ng3+ {[%clk
00:39:07]} {[%emt 00:00:11]} 25. Kh2 {[%clk 00:02:42]} {[%emt 00:00:01]} Ne2+
{[%clk 00:37:34]} {[%emt 00:02:02]} 26. Kh1 {[%clk 00:03:10]} {[%emt 00:00:02]}
Bf4 {[%clk 00:32:52]} {[%emt 00:05:12]} 27. Bd4 {[%clk 00:01:46]} {[%emt
00:01:54]} Ng3+ {[%clk 00:32:08]} {[%emt 00:01:13]} 28. Kh2 {[%clk 00:02:09]}
{[%emt 00:00:06]} Ne2+ {[%clk 00:26:56]} {[%emt 00:05:42]} 29. Kh1 {[%clk
00:02:38]} {[%emt 00:00:01]} Qg3 {[%clk 00:25:39]} {[%emt 00:01:47]} 30. Rcd1
{[%clk 00:01:33]} {[%emt 00:01:35]} Qxg4 {[%clk 00:21:22]} {[%emt 00:04:48]} 31.
Bf2 {[%clk 00:02:02]} g5 {[%clk 00:20:38]} {[%emt 00:01:14]} 32. Rxe2 {[%clk
00:01:24]} {[%emt 00:01:08]} Rxe2 {[%clk 00:21:01]} {[%emt 00:00:07]} 33. Qd4
{[%clk 00:01:21]} {[%emt 00:00:33]} Re6 {[%clk 00:19:00]} {[%emt 00:02:31]} 34.
Nc3 {[%clk 00:01:25]} {[%emt 00:00:26]} Qh5+ {[%clk 00:17:40]} {[%emt
00:01:50]} 35. Kg1 {[%clk 00:01:54]} {[%emt 00:00:01]} Rh6 {[%clk 00:16:29]}
{[%emt 00:01:41]} 36. Kf1 {[%clk 00:02:22]} Bc7 {[%clk 00:14:06]} {[%emt
00:02:54]} 37. Nd5 {[%clk 00:02:44]} {[%emt 00:00:08]} Bd8 {[%clk 00:13:31]}
{[%emt 00:01:05]} 38. Ne3 {[%clk 00:02:25]} {[%emt 00:00:48]} Bb6 {[%clk
00:13:34]} {[%emt 00:00:28]} 39. Qg4 {[%clk 00:01:46]} {[%emt 00:01:09]} Qh1+
{[%clk 00:13:00]} {[%emt 00:01:04]} 40. Ke2 {[%clk 00:17:05]} {[%emt 00:00:11]}
Qh5 {[%clk 00:28:17]} {[%emt 00:00:13]} 41. Qxh5 {[%clk 00:13:10]} {[%emt
00:04:25]} Rxh5 {[%clk 00:28:44]} {[%emt 00:00:04]} 42. Nd5 {[%clk 00:13:22]}
{[%emt 00:00:19]} Re8+ {[%clk 00:28:44]} {[%emt 00:00:29]} 43. Kd3 {[%clk
00:13:23]} {[%emt 00:00:25]} Bd8 {[%clk 00:29:10]} {[%emt 00:00:09]} 44. Bb6
{[%clk 00:13:26]} {[%emt 00:00:27]} g4 {[%clk 00:29:12]} {[%emt 00:00:28]} 45.
Kc4 {[%clk 00:10:30]} {[%emt 00:03:26]} Bxb6 {[%clk 00:19:22]} {[%emt
00:10:20]} 46. Nf6+ {[%clk 00:09:31]} {[%emt 00:01:28]} Kf8 {[%clk 00:19:49]}
{[%emt 00:00:03]} 47. Nxh5 {[%clk 00:09:07]} {[%emt 00:00:54]} gxf3 {[%clk
00:20:17]} {[%emt 00:00:02]} 48. gxf3 {[%clk 00:09:36]} {[%emt 00:00:01]} Rc8+
{[%clk 00:20:31]} {[%emt 00:00:16]} 49. Kb4 {[%clk 00:09:49]} {[%emt 00:00:16]}
Rc2 {[%clk 00:20:13]} {[%emt 00:00:48]} 50. Rd5 {[%clk 00:08:57]} {[%emt
00:01:22]} Bf2 {[%clk 00:18:26]} {[%emt 00:02:17]} 51. Nf6 {[%clk 00:02:37]}
{[%emt 00:06:50]} b6 {[%clk 00:14:58]} {[%emt 00:03:58]} 52. Nd7+ {[%clk
00:01:51]} {[%emt 00:01:16]} Ke7 {[%clk 00:15:16]} {[%emt 00:00:12]} 53. Rd1
{[%clk 00:02:03]} {[%emt 00:00:17]} h5 {[%clk 00:15:07]} {[%emt 00:00:39]} 54.
a4 {[%clk 00:01:42]} {[%emt 00:00:51]} Bc5+ {[%clk 00:14:48]} {[%emt 00:00:48]}
55. Nxc5 {[%clk 00:02:07]} {[%emt 00:00:05]} Rxc5 {[%clk 00:15:14]} {[%emt
00:00:05]} 56. Rd3 {[%clk 00:01:48]} {[%emt 00:00:49]} a5+ {[%clk 00:15:34]}
{[%emt 00:00:10]} 57. Ka3 {[%clk 00:02:17]} {[%emt 00:00:01]} h4 {[%clk
00:15:30]} {[%emt 00:00:33]} 58. b4 {[%clk 00:02:26]} {[%emt 00:00:21]} axb4+
{[%clk 00:15:37]} {[%emt 00:00:24]} 59. Kxb4 {[%clk 00:02:55]} Rh5 {[%clk
00:15:53]} {[%emt 00:00:14]} 0-1

[Event "Estonian Chess Championship 2021"]
[Site "Tallinn, Paul Keres Chess House, Estonia"]
[Date "2021.12.17"]
[Round "7.5"]
[White "Kull, Tormi"]
[Black "Andrijashkin, Deniss"]
[Result "1/2-1/2"]
[TimeControl "90 minutes for first 40 moves and 15 min. for the rest of the game with 30 sec."]
[WhiteFideId "4510151"]
[BlackFideId "4504631"]
[WhiteElo "1753"]
[BlackElo "2036"]

1. e4 {[%clk 01:30:57]} {[%emt 00:00:02]} e6 {[%clk 01:24:05]} {[%emt
00:06:56]} 2. d4 {[%clk 01:30:22]} {[%emt 00:01:05]} d5 {[%clk 01:24:13]}
{[%emt 00:00:22]} 3. exd5 {[%clk 01:25:57]} {[%emt 00:04:54]} exd5 {[%clk
01:24:38]} {[%emt 00:00:05]} 4. Nc3 {[%clk 01:26:22]} {[%emt 00:00:05]} Nf6
{[%clk 01:24:13]} {[%emt 00:00:55]} 5. h3 {[%clk 01:26:34]} {[%emt 00:00:18]}
Bd6 {[%clk 01:10:08]} {[%emt 00:14:35]} 6. Qf3 {[%clk 01:26:35]} {[%emt
00:00:29]} c6 {[%clk 00:45:43]} {[%emt 00:24:55]} 7. Be3 {[%clk 01:25:58]}
{[%emt 00:01:07]} O-O {[%clk 00:39:11]} {[%emt 00:07:03]} 8. Bd3 {[%clk
01:26:07]} {[%emt 00:00:21]} b6 {[%clk 00:35:07]} {[%emt 00:04:35]} 9. Nge2
{[%clk 01:23:00]} {[%emt 00:03:36]} Ba6 {[%clk 00:34:57]} {[%emt 00:00:40]} 10.
O-O-O {[%clk 01:22:40]} {[%emt 00:00:49]} Bxd3 {[%clk 00:34:05]} {[%emt
00:01:23]} 11. Rxd3 {[%clk 01:22:59]} {[%emt 00:00:10]} Qc7 {[%clk 00:20:29]}
{[%emt 00:14:07]} 12. Ng3 {[%clk 01:20:57]} {[%emt 00:02:32]} Bxg3 {[%clk
00:18:54]} {[%emt 00:02:06]} 13. fxg3 {[%clk 01:21:16]} {[%emt 00:00:10]} Re8
{[%clk 00:18:21]} {[%emt 00:01:02]} 14. Bf4 {[%clk 01:21:17]} {[%emt 00:00:30]}
Qe7 {[%clk 00:17:59]} {[%emt 00:00:50]} 15. Re3 {[%clk 01:20:39]} {[%emt
00:01:09]} Qf8 {[%clk 00:17:42]} {[%emt 00:00:46]} 16. Rhe1 {[%clk 01:16:17]}
{[%emt 00:04:53]} Nbd7 {[%clk 00:15:18]} {[%emt 00:02:54]} 17. g4 {[%clk
01:15:30]} {[%emt 00:01:17]} Rxe3 {[%clk 00:13:58]} {[%emt 00:01:52]} 18. Rxe3
{[%clk 01:15:49]} {[%emt 00:00:10]} Re8 {[%clk 00:12:14]} {[%emt 00:02:13]} 19.
g5 {[%clk 01:15:43]} {[%emt 00:00:37]} Rxe3 {[%clk 00:12:21]} {[%emt 00:00:24]}
20. Qxe3 {[%clk 01:15:46]} {[%emt 00:00:27]} Ne8 {[%clk 00:11:05]} {[%emt
00:01:44]} 21. Ne2 {[%clk 01:08:25]} {[%emt 00:07:54]} Nd6 {[%clk 00:10:20]}
{[%emt 00:01:15]} 22. Qa3 {[%clk 01:08:23]} {[%emt 00:00:33]} Nc4 {[%clk
00:06:36]} {[%emt 00:04:14]} 23. Qxf8+ {[%clk 01:03:28]} {[%emt 00:05:25]} Kxf8
{[%clk 00:07:03]} {[%emt 00:00:03]} 24. b3 {[%clk 01:03:39]} {[%emt 00:00:19]}
Na5 {[%clk 00:07:18]} {[%emt 00:00:12]} 25. Kd2 {[%clk 01:02:47]} {[%emt
00:01:24]} Ke7 {[%clk 00:06:47]} {[%emt 00:01:01]} 26. Kd3 {[%clk 01:02:34]}
{[%emt 00:00:43]} Nb7 {[%clk 00:02:12]} {[%emt 00:05:06]} 27. c4 {[%clk
01:01:03]} {[%emt 00:02:01]} dxc4+ {[%clk 00:01:48]} {[%emt 00:00:55]} 28. bxc4
{[%clk 01:01:20]} {[%emt 00:00:13]} c5 {[%clk 00:02:09]} {[%emt 00:00:08]} 29.
d5 {[%clk 01:01:11]} {[%emt 00:00:38]} Nd6 {[%clk 00:02:16]} {[%emt 00:00:22]}
30. Nc3 {[%clk 00:59:29]} {[%emt 00:02:13]} a6 {[%clk 00:01:21]} {[%emt
00:01:25]} 31. a4 {[%clk 00:58:39]} {[%emt 00:01:20]} Nf5 {[%clk 00:00:40]}
{[%emt 00:01:11]} 32. Ke4 {[%clk 00:58:28]} {[%emt 00:00:40]} Nd4 {[%clk
00:00:35]} {[%emt 00:00:37]} 33. d6+ {[%clk 00:58:10]} {[%emt 00:00:48]} Kd8
{[%clk 00:00:35]} {[%emt 00:00:30]} 34. Kd5 {[%clk 00:56:54]} {[%emt 00:01:46]}
Nb8 {[%emt 00:00:16]} 35. Be5 {[%clk 00:56:55]} {[%emt 00:00:27]} Ne6 {[%clk
00:00:52]} {[%emt 00:00:29]} 36. Ne2 {[%clk 00:50:28]} {[%emt 00:06:56]} Kd7
{[%clk 00:00:51]} {[%emt 00:00:32]} 37. h4 {[%clk 00:48:45]} {[%emt 00:02:13]}
Nc6 {[%clk 00:00:57]} {[%emt 00:00:23]} 38. Ng3 {[%clk 00:48:12]} {[%emt
00:01:03]} g6 {[%clk 00:00:43]} {[%emt 00:00:44]} 39. Nf1 {[%clk 00:46:36]}
{[%emt 00:02:06]} Ned8 {[%clk 00:00:34]} {[%emt 00:00:40]} 40. Bf4 {[%clk
00:59:26]} {[%emt 00:02:40]} Nb4+ {[%clk 00:15:34]} {[%emt 00:00:30]} 41. Ke4
{[%clk 00:58:55]} {[%emt 00:01:01]} Nb7 {[%clk 00:14:28]} {[%emt 00:01:34]} 42.
Ne3 {[%clk 00:58:55]} {[%emt 00:00:31]} Nxd6+ {[%clk 00:12:39]} {[%emt
00:02:20]} 43. Bxd6 {[%clk 00:59:08]} {[%emt 00:00:16]} Kxd6 {[%clk 00:13:09]}
{[%emt 00:00:01]} 44. Ng4 {[%clk 00:59:21]} {[%emt 00:00:15]} Ke6 {[%clk
00:09:04]} {[%emt 00:04:35]} 45. Nf6 {[%clk 00:58:13]} {[%emt 00:01:38]} h6
{[%clk 00:07:53]} {[%emt 00:01:41]} 46. Nh7 {[%clk 00:55:49]} {[%emt 00:02:55]}
h5 {[%clk 00:02:58]} {[%emt 00:05:25]} 47. Nf6 {[%clk 00:55:44]} {[%emt
00:00:35]} Kd6 {[%clk 00:02:16]} {[%emt 00:01:13]} 48. Ne8+ {[%clk 00:55:36]}
{[%emt 00:00:37]} Kd7 {[%clk 00:02:09]} {[%emt 00:00:36]} 49. Nf6+ {[%clk
00:55:51]} {[%emt 00:00:16]} Kc6 {[%clk 00:01:52]} {[%emt 00:00:42]} 50. g4
{[%clk 00:56:07]} {[%emt 00:00:19]} hxg4 {[%clk 00:01:34]} {[%emt 00:00:49]} 51.
Nxg4 {[%clk 00:56:03]} {[%emt 00:00:34]} Kd6 {[%clk 00:01:46]} {[%emt
00:00:14]} 52. Nf6 {[%clk 00:55:46]} {[%emt 00:00:50]} Ke6 {[%clk 00:00:39]}
{[%emt 00:01:38]} 53. h5 {[%clk 00:53:49]} {[%emt 00:02:27]} gxh5 {[%clk
00:01:04]} {[%emt 00:00:05]} 54. Nxh5 {[%clk 00:54:14]} {[%emt 00:00:05]} Na2
{[%clk 00:00:36]} {[%emt 00:00:58]} 55. Nf4+ {[%clk 00:54:36]} {[%emt
00:00:07]} Kd6 {[%clk 00:00:37]} {[%emt 00:00:29]} 56. Nd5 {[%clk 00:54:32]}
{[%emt 00:00:35]} Kc6 {[%clk 00:00:37]} {[%emt 00:00:25]} 57. Ke5 {[%clk
00:54:10]} {[%emt 00:00:57]} Nb4 {[%clk 00:00:35]} {[%emt 00:00:32]} 58. Nc3
{[%clk 00:39:57]} {[%emt 00:14:42]} Kd7 {[%clk 00:00:34]} {[%emt 00:00:32]} 59.
Kf6 {[%clk 00:40:21]} {[%emt 00:00:06]} Ke8 {[%clk 00:00:42]} {[%emt 00:00:22]}
60. Ne4 {[%clk 00:40:30]} {[%emt 00:00:20]} Nd3 {[%clk 00:00:34]} {[%emt
00:00:39]} 61. Nd6+ {[%clk 00:40:32]} {[%emt 00:00:28]} Kd7 {[%clk 00:00:31]}
{[%emt 00:00:33]} 62. Nxf7 {[%clk 00:40:45]} {[%emt 00:00:17]} Nf4 {[%clk
00:00:52]} {[%emt 00:00:09]} 63. Kf5 {[%clk 00:34:53]} {[%emt 00:06:22]} Nh5
{[%clk 00:00:41]} {[%emt 00:00:40]} 64. Ne5+ {[%clk 00:32:09]} {[%emt
00:03:15]} Kd6 {[%clk 00:00:57]} {[%emt 00:00:12]} 65. Nd3 {[%clk 00:31:25]}
{[%emt 00:01:15]} Ng3+ {[%clk 00:00:33]} {[%emt 00:00:55]} 66. Kf4 {[%clk
00:29:39]} {[%emt 00:02:13]} Nh5+ {[%clk 00:00:57]} {[%emt 00:00:08]} 67. Kg4
{[%clk 00:29:36]} {[%emt 00:00:32]} Ng7 {[%clk 00:01:23]} {[%emt 00:00:05]} 68.
g6 {[%clk 00:29:25]} {[%emt 00:00:42]} 1/2-1/2

[Event "Estonian Chess Championship 2021"]
[Site "Tallinn, Paul Keres Chess House, Estonia"]
[Date "2021.12.18"]
[Round "8.1"]
[White "Kanep, Meelis"]
[Black "Andrijashkin, Deniss"]
[Result "1/2-1/2"]
[TimeControl "90 minutes for first 40 moves and 15 min. for the rest of the game with 30 sec."]
[WhiteTitle "GM"]
[WhiteFideId "4501047"]
[BlackFideId "4504631"]
[WhiteElo "2433"]
[BlackElo "2036"]

1. d4 {[%clk 01:27:22]} {[%emt 00:03:36]} Nf6 {[%clk 01:30:49]} {[%emt
00:00:08]} 2. Nf3 {[%clk 01:27:25]} {[%emt 00:00:30]} g6 {[%clk 01:31:04]}
{[%emt 00:00:16]} 3. c4 {[%clk 01:27:39]} {[%emt 00:00:16]} Bg7 {[%clk
01:31:21]} {[%emt 00:00:13]} 4. g3 {[%clk 01:28:02]} {[%emt 00:00:07]} O-O
{[%clk 01:31:31]} {[%emt 00:00:19]} 5. Bg2 {[%clk 01:28:28]} {[%emt 00:00:04]}
d6 {[%clk 01:31:52]} {[%emt 00:00:10]} 6. O-O {[%clk 01:28:51]} {[%emt
00:00:06]} Nc6 {[%clk 01:32:18]} {[%emt 00:00:04]} 7. Nc3 {[%clk 01:29:11]}
{[%emt 00:00:10]} e5 {[%clk 01:32:43]} {[%emt 00:00:05]} 8. d5 {[%clk
01:28:34]} {[%emt 00:01:07]} Nb8 {[%clk 01:33:09]} {[%emt 00:00:04]} 9. e4
{[%clk 01:28:04]} {[%emt 00:00:59]} a5 {[%clk 01:32:30]} {[%emt 00:01:10]} 10.
Ne1 {[%clk 01:27:03]} {[%emt 00:01:31]} Na6 {[%clk 01:31:56]} {[%emt 00:01:04]}
11. Nd3 {[%clk 01:23:42]} {[%emt 00:03:51]} Nd7 {[%clk 01:31:21]} {[%emt
00:01:06]} 12. Be3 {[%clk 01:19:46]} {[%emt 00:04:26]} Ndc5 {[%clk 01:24:04]}
{[%emt 00:07:48]} 13. Nxc5 {[%clk 01:19:01]} {[%emt 00:01:14]} Nxc5 {[%clk
01:24:15]} {[%emt 00:00:19]} 14. a3 {[%clk 01:16:45]} {[%emt 00:02:46]} Bd7
{[%clk 01:17:22]} {[%emt 00:07:23]} 15. b4 {[%clk 01:04:59]} {[%emt 00:12:16]}
axb4 {[%clk 01:17:45]} {[%emt 00:00:07]} 16. axb4 {[%clk 01:05:25]} {[%emt
00:00:04]} Rxa1 {[%clk 01:18:09]} {[%emt 00:00:07]} 17. Qxa1 {[%clk 01:05:51]}
{[%emt 00:00:04]} Nb3 {[%clk 01:18:35]} {[%emt 00:00:03]} 18. Qb2 {[%clk
01:04:25]} {[%emt 00:01:56]} Nd4 {[%clk 01:18:47]} {[%emt 00:00:19]} 19. Ne2
{[%clk 01:04:34]} {[%emt 00:00:20]} Nxe2+ {[%clk 01:06:35]} {[%emt 00:12:42]}
20. Qxe2 {[%clk 01:02:37]} {[%emt 00:02:27]} f5 {[%clk 01:00:23]} {[%emt
00:06:42]} 21. exf5 {[%clk 01:00:37]} {[%emt 00:02:30]} gxf5 {[%clk 00:55:07]}
{[%emt 00:05:47]} 22. f4 {[%clk 01:00:25]} {[%emt 00:00:41]} e4 {[%clk
00:52:24]} {[%emt 00:03:13]} 23. Rd1 {[%clk 00:59:31]} {[%emt 00:01:24]} Qa8
{[%clk 00:47:51]} {[%emt 00:05:01]} 24. b5 {[%clk 00:40:35]} {[%emt 00:19:29]}
Qa3 {[%emt 00:02:04]} 25. Bd4 {[%emt 00:00:25]} 1/2-1/2

[Event "Estonian Chess Championship 2021"]
[Site "Tallinn, Paul Keres Chess House, Estonia"]
[Date "2021.12.18"]
[Round "8.2"]
[White "Rychagov, Nikita"]
[Black "Kull, Tormi"]
[Result "1-0"]
[TimeControl "90 minutes for first 40 moves and 15 min. for the rest of the game with 30 sec."]
[WhiteFideId "4508394"]
[BlackFideId "4510151"]
[WhiteElo "1985"]
[BlackElo "1753"]

1. e4 {[%clk 01:30:57]} {[%emt 00:00:02]} c6 {[%clk 01:30:54]} {[%emt
00:00:06]} 2. d4 {[%clk 01:31:25]} {[%emt 00:00:03]} d5 {[%clk 01:31:20]}
{[%emt 00:00:04]} 3. e5 {[%clk 01:31:53]} {[%emt 00:00:02]} c5 {[%clk
01:31:46]} {[%emt 00:00:04]} 4. dxc5 {[%clk 01:32:20]} {[%emt 00:00:03]} e6
{[%clk 01:32:12]} {[%emt 00:00:04]} 5. Bd3 {[%clk 01:32:46]} {[%emt 00:00:04]}
Nd7 {[%clk 01:32:37]} {[%emt 00:00:05]} 6. Nf3 {[%clk 01:33:12]} {[%emt
00:00:04]} Nxc5 {[%clk 01:32:58]} {[%emt 00:00:09]} 7. Be2 {[%clk 01:33:38]}
{[%emt 00:00:04]} Ne7 {[%clk 01:32:04]} {[%emt 00:01:23]} 8. O-O {[%clk
01:34:03]} {[%emt 00:00:06]} Ng6 {[%clk 01:32:12]} {[%emt 00:00:22]} 9. c4
{[%clk 01:26:06]} {[%emt 00:08:27]} dxc4 {[%clk 01:26:30]} {[%emt 00:06:11]} 10.
Qxd8+ {[%clk 01:24:51]} {[%emt 00:01:45]} Kxd8 {[%clk 01:26:53]} {[%emt
00:00:07]} 11. Na3 {[%clk 01:24:31]} {[%emt 00:00:50]} Bd7 {[%clk 01:24:16]}
{[%emt 00:03:07]} 12. Nxc4 {[%clk 01:24:34]} {[%emt 00:00:27]} Bc6 {[%clk
01:22:34]} {[%emt 00:02:12]} 13. Be3 {[%clk 01:22:17]} {[%emt 00:02:47]} Nd7
{[%clk 01:21:27]} {[%emt 00:01:37]} 14. Rfd1 {[%clk 01:21:07]} {[%emt
00:01:40]} Bd5 {[%clk 01:19:21]} {[%emt 00:02:36]} 15. Rac1 {[%clk 01:16:56]}
{[%emt 00:04:42]} f6 {[%clk 01:16:21]} {[%emt 00:03:30]} 16. h4 {[%clk
01:10:47]} {[%emt 00:06:39]} Rg8 {[%clk 01:11:38]} {[%emt 00:05:12]} 17. h5
{[%clk 01:09:41]} {[%emt 00:01:37]} Nh8 {[%clk 01:11:28]} {[%emt 00:00:40]} 18.
Bd3 {[%clk 01:08:31]} {[%emt 00:01:40]} f5 {[%clk 01:11:14]} {[%emt 00:00:44]}
19. Bxf5 {[%clk 01:07:29]} {[%emt 00:01:33]} g6 {[%clk 01:10:33]} {[%emt
00:01:11]} 20. Bh3 {[%clk 01:05:02]} {[%emt 00:02:57]} gxh5 {[%clk 01:09:37]}
{[%emt 00:01:26]} 21. Ng5 {[%clk 01:04:47]} {[%emt 00:00:46]} Ke7 {[%clk
01:08:57]} {[%emt 00:01:10]} 22. Nxh7 {[%clk 00:59:52]} {[%emt 00:05:25]} Nf7
{[%clk 01:07:43]} {[%emt 00:01:43]} 23. Nxf8 {[%clk 00:59:11]} {[%emt
00:01:12]} Nxf8 {[%clk 01:02:45]} {[%emt 00:05:27]} 24. Bc5+ {[%clk 00:57:52]}
{[%emt 00:01:50]} Ke8 {[%clk 01:02:57]} {[%emt 00:00:17]} 25. Nd6+ {[%clk
00:54:01]} {[%emt 00:04:21]} Nxd6 {[%clk 01:03:10]} {[%emt 00:00:17]} 26. Bxd6
{[%clk 00:54:22]} {[%emt 00:00:09]} Ng6 {[%clk 01:03:14]} {[%emt 00:00:26]} 27.
Rd4 {[%clk 00:54:22]} {[%emt 00:00:31]} Bxa2 {[%clk 01:02:29]} {[%emt
00:01:14]} 28. Rc7 {[%clk 00:53:33]} {[%emt 00:01:19]} Bd5 {[%clk 01:02:30]}
{[%emt 00:00:29]} 29. Rxd5 {[%clk 00:53:08]} {[%emt 00:00:56]} exd5 {[%clk
01:02:53]} {[%emt 00:00:06]} 30. Be6 {[%clk 00:53:26]} {[%emt 00:00:12]} Rh8
{[%clk 01:00:53]} {[%emt 00:02:30]} 31. Bf7+ {[%clk 00:53:29]} {[%emt
00:00:27]} Kd8 {[%clk 01:01:17]} {[%emt 00:00:05]} 32. Bxg6 {[%clk 00:53:46]}
{[%emt 00:00:14]} Rc8 {[%clk 01:01:08]} {[%emt 00:00:38]} 33. Rxb7 {[%clk
00:53:51]} {[%emt 00:00:25]} Rc1+ {[%clk 01:01:20]} {[%emt 00:00:18]} 34. Kh2
{[%clk 00:54:19]} {[%emt 00:00:03]} Rh6 {[%clk 01:00:32]} {[%emt 00:01:19]} 35.
Bf5 {[%clk 00:54:42]} {[%emt 00:00:07]} Ke8 {[%clk 01:00:23]} {[%emt 00:00:39]}
36. e6 {[%clk 00:55:03]} {[%emt 00:00:09]} Rc8 {[%clk 01:00:20]} {[%emt
00:00:32]} 37. Re7+ {[%clk 00:55:27]} {[%emt 00:00:06]} Kd8 {[%clk 01:00:43]}
{[%emt 00:00:07]} 38. Rg7 {[%clk 00:55:53]} {[%emt 00:00:04]} 1-0